[Event "*** SCC Grand Prix: Titled Tuesday Blitz"]
[Site "Chess.com"]
[Date "2020.06.23"]
[Round "4"]
[White "cassoulet"]
[Black "DraG0s3L"]
[Result "1-0"]
[WhiteElo "2653"]
[BlackElo "2466"]
[TimeControl "180+1"]
[EndTime "10:37:44 PDT"]
[Termination "cassoulet won by checkmate"]

1. e4 {[%clk 0:03:00.9]} 1... e6 {[%clk 0:02:59.8]} 2. d3 {[%clk 0:03:00.1]}
2... d5 {[%clk 0:03:00.4]} 3. Nd2 {[%clk 0:03:00.6]} 3... c5 {[%clk 0:02:59.8]}
4. g3 {[%clk 0:03:00.7]} 4... Nc6 {[%clk 0:03:00.4]} 5. Bg2 {[%clk 0:03:01.2]}
5... Nf6 {[%clk 0:02:59.2]} 6. Ngf3 {[%clk 0:02:59.9]} 6... b5 {[%clk
0:02:59.3]} 7. O-O {[%clk 0:02:59.5]} 7... Bb7 {[%clk 0:02:59.6]} 8. c3 {[%clk
0:03:00]} 8... Be7 {[%clk 0:02:59.7]} 9. Qe2 {[%clk 0:03:00.1]} 9... O-O {[%clk
0:02:59.9]} 10. Re1 {[%clk 0:02:58.8]} 10... Nd7 {[%clk 0:02:55.6]} 11. Nf1
{[%clk 0:02:58.2]} 11... Bf6 {[%clk 0:02:52.8]} 12. Bf4 {[%clk 0:02:53.5]} 12...
a5 {[%clk 0:02:37.6]} 13. e5 {[%clk 0:02:48]} 13... Be7 {[%clk 0:02:38]} 14. h4
{[%clk 0:02:46.2]} 14... a4 {[%clk 0:02:36.2]} 15. N1h2 {[%clk 0:02:36]} 15...
b4 {[%clk 0:02:34.6]} 16. c4 {[%clk 0:02:34.6]} 16... Nb6 {[%clk 0:02:31.9]} 17.
Rac1 {[%clk 0:02:29.2]} 17... dxc4 {[%clk 0:02:31.4]} 18. dxc4 {[%clk
0:02:28.7]} 18... Qc7 {[%clk 0:02:27.6]} 19. Ng4 {[%clk 0:02:21.8]} 19... Rfd8
{[%clk 0:02:24.5]} 20. h5 {[%clk 0:02:12.6]} 20... Na5 {[%clk 0:02:04]} 21. h6
{[%clk 0:02:08.1]} 21... g6 {[%clk 0:02:03.1]} 22. Ng5 {[%clk 0:01:45.1]} 22...
Bxg2 {[%clk 0:01:57.1]} 23. Kxg2 {[%clk 0:01:46]} 23... Rd4 {[%clk 0:01:52.7]}
24. Be3 {[%clk 0:01:32.8]} 24... Rxc4 {[%clk 0:01:52.5]} 25. Qf3 {[%clk
0:01:29.4]} 25... Bf8 {[%clk 0:01:38.4]} 26. Nf6+ {[%clk 0:01:11.8]} 26... Kh8
{[%clk 0:01:38.5]} 27. Nfxh7 {[%clk 0:00:53.2]} 27... Bxh6 {[%clk 0:01:28.9]}
28. Nxf7+ {[%clk 0:00:52.5]} 28... Kxh7 {[%clk 0:01:28.1]} 29. Rh1 {[%clk
0:00:50.1]} 29... Kg8 {[%clk 0:01:08.6]} 30. Nxh6+ {[%clk 0:00:45.8]} 30... Kg7
{[%clk 0:01:09.1]} 31. Qf6+ {[%clk 0:00:45.8]} 31... Kh7 {[%clk 0:01:09.1]} 32.
Nf7+ {[%clk 0:00:45.4]} 32... Kg8 {[%clk 0:01:08.8]} 33. Rh8# {[%clk 0:00:45.8]}
1-0

[Event "*** SCC Grand Prix: Titled Tuesday Blitz"]
[Site "Chess.com"]
[Date "2020.06.23"]
[Round "4"]
[White "viditchess"]
[Black "gmcorrales"]
[Result "1/2-1/2"]
[WhiteElo "3020"]
[BlackElo "2822"]
[TimeControl "180+1"]
[EndTime "10:37:46 PDT"]
[Termination "Game drawn by agreement"]

1. d4 {[%clk 0:03:00.9]} 1... Nf6 {[%clk 0:02:59]} 2. c4 {[%clk 0:03:01]} 2...
g6 {[%clk 0:02:59.6]} 3. g3 {[%clk 0:03:00.4]} 3... Bg7 {[%clk 0:02:58.9]} 4.
Bg2 {[%clk 0:03:00.7]} 4... d5 {[%clk 0:02:59.5]} 5. Nf3 {[%clk 0:02:57.1]} 5...
O-O {[%clk 0:02:59.3]} 6. O-O {[%clk 0:02:56.8]} 6... Nc6 {[%clk 0:02:59.5]} 7.
Na3 {[%clk 0:02:56]} 7... Re8 {[%clk 0:02:50.4]} 8. Bf4 {[%clk 0:02:48.4]} 8...
dxc4 {[%clk 0:02:36]} 9. Nxc4 {[%clk 0:02:47.4]} 9... Nd5 {[%clk 0:02:35.1]} 10.
Bg5 {[%clk 0:02:34.7]} 10... Nb6 {[%clk 0:02:34.5]} 11. Nxb6 {[%clk 0:01:40.6]}
11... axb6 {[%clk 0:02:35.4]} 12. Be3 {[%clk 0:01:41.2]} 12... Be6 {[%clk
0:02:32.6]} 13. a3 {[%clk 0:01:40.4]} 13... Bd5 {[%clk 0:02:32.3]} 14. Rc1
{[%clk 0:01:35.8]} 14... Rb8 {[%clk 0:02:15.3]} 15. Qc2 {[%clk 0:00:53.1]} 15...
Bxf3 {[%clk 0:01:56.8]} 16. Bxf3 {[%clk 0:00:54]} 16... Nxd4 {[%clk 0:01:57.3]}
17. Bxd4 {[%clk 0:00:49.4]} 17... Qxd4 {[%clk 0:01:58.2]} 18. Qxc7 {[%clk
0:00:48.2]} 18... Qxb2 {[%clk 0:01:58.4]} 19. Rb1 {[%clk 0:00:45.3]} 19... Qxa3
{[%clk 0:01:51.6]} 20. Rxb6 {[%clk 0:00:43.3]} 20... Rec8 {[%clk 0:01:41.3]} 21.
Qd7 {[%clk 0:00:39.1]} 21... Rd8 {[%clk 0:01:38.8]} 22. Qb5 {[%clk 0:00:36.7]}
22... Qa7 {[%clk 0:01:04.6]} 23. Rxb7 {[%clk 0:00:32.1]} 23... Rxb7 {[%clk
0:01:04.6]} 24. Qxb7 {[%clk 0:00:33]} 24... Qxb7 {[%clk 0:01:04.7]} 25. Bxb7
{[%clk 0:00:33.9]} 1/2-1/2

[Event "*** SCC Grand Prix: Titled Tuesday Blitz"]
[Site "Chess.com"]
[Date "2020.06.23"]
[Round "4"]
[White "Semetey"]
[Black "StephenDedalus83"]
[Result "0-1"]
[WhiteElo "2530"]
[BlackElo "2762"]
[TimeControl "180+1"]
[EndTime "10:37:46 PDT"]
[Termination "StephenDedalus83 won on time"]

1. d4 {[%clk 0:03:00.9]} 1... Nf6 {[%clk 0:02:59.2]} 2. Nc3 {[%clk 0:03:00.6]}
2... g6 {[%clk 0:02:59.7]} 3. Bf4 {[%clk 0:03:00.4]} 3... d6 {[%clk 0:02:56.7]}
4. Qd2 {[%clk 0:02:59.5]} 4... Nbd7 {[%clk 0:02:55.4]} 5. Nf3 {[%clk 0:02:58.6]}
5... c5 {[%clk 0:02:53.8]} 6. d5 {[%clk 0:02:50.4]} 6... Qa5 {[%clk 0:02:53.6]}
7. e4 {[%clk 0:02:22.9]} 7... Bg7 {[%clk 0:02:49.9]} 8. Bd3 {[%clk 0:02:16.1]}
8... a6 {[%clk 0:02:49.2]} 9. O-O {[%clk 0:02:02.3]} 9... b5 {[%clk 0:02:48.9]}
10. e5 {[%clk 0:01:59.7]} 10... dxe5 {[%clk 0:02:35.5]} 11. Nxe5 {[%clk
0:02:00.6]} 11... Nxe5 {[%clk 0:02:25.9]} 12. Bxe5 {[%clk 0:02:00]} 12... O-O
{[%clk 0:02:25.3]} 13. d6 {[%clk 0:01:31.8]} 13... exd6 {[%clk 0:02:24.5]} 14.
Bxd6 {[%clk 0:01:32.7]} 14... Rd8 {[%clk 0:02:24.4]} 15. Bxc5 {[%clk 0:01:32.8]}
15... b4 {[%clk 0:02:23.7]} 16. Qe3 {[%clk 0:01:06.4]} 16... Re8 {[%clk
0:02:23.2]} 17. Ne4 {[%clk 0:00:56.2]} 17... Nxe4 {[%clk 0:02:22.3]} 18. Bxe4
{[%clk 0:00:57.1]} 18... Bb7 {[%clk 0:02:20.9]} 19. Bxb7 {[%clk 0:00:42.1]}
19... Rxe3 {[%clk 0:02:19.5]} 20. Bxe3 {[%clk 0:00:42.4]} 20... Rb8 {[%clk
0:02:16.4]} 21. Bf3 {[%clk 0:00:32.6]} 21... Bxb2 {[%clk 0:02:14.1]} 22. Rab1
{[%clk 0:00:23.5]} 22... Bc3 {[%clk 0:02:12.6]} 23. Rfd1 {[%clk 0:00:22.7]}
23... Qxa2 {[%clk 0:02:12.4]} 24. Bd5 {[%clk 0:00:19.7]} 24... Qxc2 {[%clk
0:02:11.9]} 25. Bb3 {[%clk 0:00:20.3]} 25... Qf5 {[%clk 0:02:11.7]} 26. Rbc1
{[%clk 0:00:16.5]} 26... a5 {[%clk 0:02:09.6]} 27. Bd4 {[%clk 0:00:16]} 27...
Rc8 {[%clk 0:02:01.4]} 28. Bb6 {[%clk 0:00:09.1]} 28... Qb5 {[%clk 0:01:58.2]}
29. Bd4 {[%clk 0:00:06.9]} 29... a4 {[%clk 0:01:57.6]} 30. Bxc3 {[%clk 0:00:05]}
30... Rxc3 {[%clk 0:01:56.6]} 31. Rxc3 {[%clk 0:00:01.8]} 31... bxc3 {[%clk
0:01:56.1]} 32. Ba2 {[%clk 0:00:02.2]} 32... c2 {[%clk 0:01:56]} 33. Rc1 {[%clk
0:00:02.2]} 33... Qb2 {[%clk 0:01:55.9]} 0-1

[Event "*** SCC Grand Prix: Titled Tuesday Blitz"]
[Site "Chess.com"]
[Date "2020.06.23"]
[Round "4"]
[White "Kumi29"]
[Black "Ze-Pequeno"]
[Result "1/2-1/2"]
[WhiteElo "2387"]
[BlackElo "2162"]
[TimeControl "180+1"]
[EndTime "10:37:47 PDT"]
[Termination "Game drawn - insufficient material"]

1. e4 {[%clk 0:03:00.9]} 1... Nf6 {[%clk 0:02:59.2]} 2. Nc3 {[%clk 0:02:57.7]}
2... e5 {[%clk 0:02:58.7]} 3. f4 {[%clk 0:02:57.4]} 3... d5 {[%clk 0:02:57.9]}
4. fxe5 {[%clk 0:02:55.4]} 4... Nxe4 {[%clk 0:02:57.6]} 5. Qf3 {[%clk
0:02:55.8]} 5... Nxc3 {[%clk 0:02:55.8]} 6. dxc3 {[%clk 0:02:54.1]} 6... Be7
{[%clk 0:02:51.5]} 7. Bd3 {[%clk 0:02:53.7]} 7... O-O {[%clk 0:02:46.5]} 8. Qh5
{[%clk 0:02:45.2]} 8... g6 {[%clk 0:02:44.6]} 9. Qh6 {[%clk 0:02:44.8]} 9... Nc6
{[%clk 0:02:30.3]} 10. h4 {[%clk 0:02:38.6]} 10... Nxe5 {[%clk 0:02:16.4]} 11.
h5 {[%clk 0:02:37.9]} 11... Nxd3+ {[%clk 0:02:12]} 12. cxd3 {[%clk 0:02:35.3]}
12... Bf5 {[%clk 0:02:10.8]} 13. hxg6 {[%clk 0:02:30.8]} 13... Bxg6 {[%clk
0:02:09.3]} 14. Bf4 {[%clk 0:02:25.9]} 14... Re8 {[%clk 0:01:47.6]} 15. O-O-O
{[%clk 0:02:22.3]} 15... Bf8 {[%clk 0:01:42.6]} 16. Qg5 {[%clk 0:02:22.5]} 16...
Qxg5 {[%clk 0:01:38.7]} 17. Bxg5 {[%clk 0:02:23.4]} 17... Bg7 {[%clk 0:01:36.4]}
18. Nf3 {[%clk 0:02:23.5]} 18... Re2 {[%clk 0:01:35.2]} 19. Rd2 {[%clk
0:02:20.8]} 19... Rae8 {[%clk 0:01:34.4]} 20. Nh4 {[%clk 0:02:11.9]} 20... Re1+
{[%clk 0:01:23.7]} 21. Rxe1 {[%clk 0:02:11.4]} 21... Rxe1+ {[%clk 0:01:24.5]}
22. Kc2 {[%clk 0:02:11.6]} 22... c6 {[%clk 0:01:15.2]} 23. Nxg6 {[%clk
0:02:11.3]} 23... fxg6 {[%clk 0:01:10.4]} 24. Kb3 {[%clk 0:02:11.5]} 24... h6
{[%clk 0:01:09.4]} 25. Bd8 {[%clk 0:02:09.4]} 25... h5 {[%clk 0:01:04.2]} 26. a4
{[%clk 0:02:07.1]} 26... Bf8 {[%clk 0:01:02.3]} 27. a5 {[%clk 0:02:04.7]} 27...
a6 {[%clk 0:01:02.3]} 28. Rf2 {[%clk 0:02:01.6]} 28... Re8 {[%clk 0:00:53.9]}
29. Bh4 {[%clk 0:01:57.6]} 29... Re6 {[%clk 0:00:52.6]} 30. d4 {[%clk 0:01:56]}
30... Be7 {[%clk 0:00:45.7]} 31. Bxe7 {[%clk 0:01:56]} 31... Rxe7 {[%clk
0:00:45.4]} 32. Kb4 {[%clk 0:01:56.6]} 32... Kg7 {[%clk 0:00:44.5]} 33. Kc5
{[%clk 0:01:56.8]} 33... g5 {[%clk 0:00:44.8]} 34. Kd6 {[%clk 0:01:50]} 34...
Rf7 {[%clk 0:00:39.9]} 35. Rxf7+ {[%clk 0:01:50.1]} 35... Kxf7 {[%clk
0:00:40.8]} 36. Kc7 {[%clk 0:01:50.7]} 36... g4 {[%clk 0:00:41.2]} 37. Kxb7
{[%clk 0:01:50.9]} 37... h4 {[%clk 0:00:42.1]} 38. Kxa6 {[%clk 0:01:51.1]} 38...
h3 {[%clk 0:00:43]} 39. gxh3 {[%clk 0:01:50.1]} 39... gxh3 {[%clk 0:00:43.9]}
40. Kb7 {[%clk 0:01:50.1]} 40... h2 {[%clk 0:00:44.8]} 41. a6 {[%clk 0:01:50.7]}
41... h1=Q {[%clk 0:00:45.7]} 42. a7 {[%clk 0:01:51.1]} 42... Qb1 {[%clk
0:00:44.9]} 43. a8=Q {[%clk 0:01:50.7]} 43... Qxb2+ {[%clk 0:00:45]} 44. Kxc6
{[%clk 0:01:51.1]} 44... Qxc3+ {[%clk 0:00:45]} 45. Kd6 {[%clk 0:01:50.2]} 45...
Qxd4 {[%clk 0:00:44.8]} 46. Qxd5+ {[%clk 0:01:48.5]} 46... Qxd5+ {[%clk
0:00:44.7]} 47. Kxd5 {[%clk 0:01:49.4]} 1/2-1/2

[Event "*** SCC Grand Prix: Titled Tuesday Blitz"]
[Site "Chess.com"]
[Date "2020.06.23"]
[Round "4"]
[White "Irina_Barchuk"]
[Black "axlbvRR"]
[Result "1-0"]
[WhiteElo "2194"]
[BlackElo "1863"]
[TimeControl "180+1"]
[EndTime "10:37:47 PDT"]
[Termination "Irina_Barchuk won by resignation"]

1. e4 {[%clk 0:03:00.4]} 1... e6 {[%clk 0:03:00.9]} 2. d4 {[%clk 0:02:58.6]}
2... d5 {[%clk 0:03:01.8]} 3. Nc3 {[%clk 0:02:55.6]} 3... Nf6 {[%clk 0:03:00.7]}
4. e5 {[%clk 0:02:52.6]} 4... Nfd7 {[%clk 0:02:59.1]} 5. f4 {[%clk 0:02:52.3]}
5... c5 {[%clk 0:02:58.9]} 6. Nf3 {[%clk 0:02:51.7]} 6... Nc6 {[%clk 0:02:58.2]}
7. Be3 {[%clk 0:02:49]} 7... cxd4 {[%clk 0:02:54.8]} 8. Nxd4 {[%clk 0:02:47.5]}
8... Bb4 {[%clk 0:02:51.8]} 9. Qd2 {[%clk 0:02:37.1]} 9... O-O {[%clk
0:02:48.9]} 10. Bd3 {[%clk 0:02:31.5]} 10... Nxd4 {[%clk 0:02:18.9]} 11. Bxd4
{[%clk 0:02:29.3]} 11... f6 {[%clk 0:02:19]} 12. exf6 {[%clk 0:02:20.1]} 12...
Nxf6 {[%clk 0:02:17.7]} 13. O-O {[%clk 0:02:18.1]} 13... Bd7 {[%clk 0:02:12.2]}
14. a3 {[%clk 0:02:12.2]} 14... Bd6 {[%clk 0:02:11.9]} 15. Rae1 {[%clk
0:02:08.2]} 15... Qe8 {[%clk 0:02:04.1]} 16. Bxf6 {[%clk 0:02:03]} 16... Rxf6
{[%clk 0:02:01.6]} 17. Nxd5 {[%clk 0:02:02.2]} 17... Rh6 {[%clk 0:01:49.6]} 18.
Ne3 {[%clk 0:01:46.4]} 18... Bc6 {[%clk 0:01:41.4]} 19. Bxh7+ {[%clk 0:01:30.5]}
19... Rxh7 {[%clk 0:01:31.2]} 20. Qxd6 {[%clk 0:01:30.7]} 20... Qh5 {[%clk
0:01:19]} 21. Qxe6+ {[%clk 0:01:25.4]} 21... Kh8 {[%clk 0:01:17]} 22. h3 {[%clk
0:01:22.6]} 22... Re8 {[%clk 0:01:10.9]} 23. Qg4 {[%clk 0:01:21]} 23... Qc5
{[%clk 0:01:07.8]} 24. Qf5 {[%clk 0:01:01.7]} 24... Rh6 {[%clk 0:00:57.5]} 25.
Qxc5 {[%clk 0:00:59.1]} 1-0

[Event "*** SCC Grand Prix: Titled Tuesday Blitz"]
[Site "Chess.com"]
[Date "2020.06.23"]
[Round "4"]
[White "ChronicUnhappiness"]
[Black "CrushingKings"]
[Result "1-0"]
[WhiteElo "2355"]
[BlackElo "2506"]
[TimeControl "180+1"]
[EndTime "10:37:52 PDT"]
[Termination "ChronicUnhappiness won by resignation"]

1. c4 {[%clk 0:03:00.9]} 1... g6 {[%clk 0:02:59]} 2. d4 {[%clk 0:03:00]} 2...
Bg7 {[%clk 0:02:59.6]} 3. Nc3 {[%clk 0:03:00.3]} 3... c5 {[%clk 0:02:59.6]} 4.
d5 {[%clk 0:02:59.6]} 4... d6 {[%clk 0:02:58.8]} 5. Nf3 {[%clk 0:02:59.4]} 5...
Bxc3+ {[%clk 0:02:58.9]} 6. bxc3 {[%clk 0:02:58.9]} 6... Qa5 {[%clk 0:02:59.8]}
7. Bd2 {[%clk 0:02:51]} 7... Bg4 {[%clk 0:03:00]} 8. g3 {[%clk 0:02:47.4]} 8...
Nd7 {[%clk 0:02:58.5]} 9. Bg2 {[%clk 0:02:47.1]} 9... Bxf3 {[%clk 0:02:59.1]}
10. exf3 {[%clk 0:02:41.9]} 10... Ngf6 {[%clk 0:02:53.4]} 11. O-O {[%clk
0:02:37.7]} 11... O-O-O {[%clk 0:02:53]} 12. Re1 {[%clk 0:02:30]} 12... Rde8
{[%clk 0:02:52.7]} 13. Bh3 {[%clk 0:02:15.5]} 13... Kb8 {[%clk 0:02:52.8]} 14.
Qb3 {[%clk 0:02:05.1]} 14... Ne5 {[%clk 0:02:40.6]} 15. Bg2 {[%clk 0:01:51.4]}
15... Qa6 {[%clk 0:02:33.7]} 16. f4 {[%clk 0:01:50.9]} 16... Nxc4 {[%clk
0:02:30.8]} 17. Bc1 {[%clk 0:01:34.5]} 17... Nb6 {[%clk 0:02:30.3]} 18. Bf1
{[%clk 0:01:27.7]} 18... Qa4 {[%clk 0:02:29.2]} 19. c4 {[%clk 0:01:26.3]} 19...
h5 {[%clk 0:01:51.1]} 20. h4 {[%clk 0:01:24.6]} 20... Qxb3 {[%clk 0:01:21.6]}
21. axb3 {[%clk 0:01:24.3]} 21... Nc8 {[%clk 0:01:22]} 22. Bb2 {[%clk
0:01:23.9]} 22... b6 {[%clk 0:01:20.8]} 23. Bh3 {[%clk 0:01:21.9]} 23... a5
{[%clk 0:01:17.3]} 24. Re2 {[%clk 0:01:13]} 24... Kc7 {[%clk 0:01:16.8]} 25.
Rae1 {[%clk 0:00:56.5]} 25... Rh7 {[%clk 0:00:35.8]} 26. Bxf6 {[%clk 0:00:52.8]}
1-0

[Event "*** SCC Grand Prix: Titled Tuesday Blitz"]
[Site "Chess.com"]
[Date "2020.06.23"]
[Round "4"]
[White "Sammed_Shete"]
[Black "WonderChampion"]
[Result "1-0"]
[WhiteElo "2569"]
[BlackElo "2038"]
[TimeControl "180+1"]
[EndTime "10:37:55 PDT"]
[Termination "Sammed_Shete won by resignation"]

1. e4 {[%clk 0:03:00.9]} 1... c5 {[%clk 0:02:59.2]} 2. Nf3 {[%clk 0:02:58.9]}
2... g6 {[%clk 0:02:59.3]} 3. g3 {[%clk 0:02:54.9]} 3... Bg7 {[%clk 0:02:57.3]}
4. Bg2 {[%clk 0:02:54.7]} 4... Nc6 {[%clk 0:02:57.1]} 5. Nc3 {[%clk 0:02:53.7]}
5... e6 {[%clk 0:02:54.9]} 6. O-O {[%clk 0:02:50.2]} 6... Nge7 {[%clk
0:02:55.3]} 7. d3 {[%clk 0:02:45.1]} 7... O-O {[%clk 0:02:52.9]} 8. Re1 {[%clk
0:02:37.9]} 8... h6 {[%clk 0:02:46.8]} 9. h4 {[%clk 0:02:30.8]} 9... a6 {[%clk
0:02:46.1]} 10. e5 {[%clk 0:02:24.2]} 10... Qc7 {[%clk 0:02:44]} 11. Bf4 {[%clk
0:02:22.6]} 11... b5 {[%clk 0:02:40.7]} 12. Ne4 {[%clk 0:02:16.1]} 12... Nxe5
{[%clk 0:02:14.8]} 13. Nxe5 {[%clk 0:02:07.9]} 13... Bxe5 {[%clk 0:02:13.4]} 14.
Nf6+ {[%clk 0:02:07.9]} 14... Kg7 {[%clk 0:01:43.4]} 15. Bxe5 {[%clk 0:02:06.5]}
15... Qd8 {[%clk 0:01:39.6]} 16. Nxd7+ {[%clk 0:01:58.5]} 16... f6 {[%clk
0:01:33.2]} 17. Nxf6 {[%clk 0:01:48.8]} 17... Rxf6 {[%clk 0:01:32.8]} 18. Bxa8
{[%clk 0:01:47.7]} 18... Qf8 {[%clk 0:01:23.3]} 19. Qf3 {[%clk 0:01:43.1]} 19...
Nf5 {[%clk 0:01:21.5]} 20. g4 {[%clk 0:01:31.2]} 20... Nxh4 {[%clk 0:01:18]} 21.
Qxf6+ {[%clk 0:01:30]} 21... Qxf6 {[%clk 0:01:18.9]} 22. Bxf6+ {[%clk
0:01:30.8]} 22... Kxf6 {[%clk 0:01:14.6]} 23. f4 {[%clk 0:01:31.1]} 23... g5
{[%clk 0:01:12.6]} 24. fxg5+ {[%clk 0:01:25.8]} 24... hxg5 {[%clk 0:01:13.5]}
25. Kf2 {[%clk 0:01:25.6]} 25... Bd7 {[%clk 0:01:11]} 26. Rh1 {[%clk 0:01:24.6]}
26... e5 {[%clk 0:01:09]} 27. Kg3 {[%clk 0:01:23.2]} 27... Ng6 {[%clk
0:01:03.8]} 28. Rh6 {[%clk 0:01:22.6]} 28... Kg7 {[%clk 0:01:01.9]} 29. Rxg6+
{[%clk 0:01:22.3]} 29... Kxg6 {[%clk 0:01:01.2]} 30. Rf1 {[%clk 0:01:21]} 30...
Be6 {[%clk 0:00:59.6]} 31. Be4+ {[%clk 0:01:20.7]} 31... Kg7 {[%clk 0:00:57.9]}
32. b3 {[%clk 0:01:21.6]} 32... a5 {[%clk 0:00:57.1]} 33. Bf5 {[%clk 0:01:21.7]}
33... Bd5 {[%clk 0:00:56.3]} 34. c4 {[%clk 0:01:18.5]} 34... bxc4 {[%clk
0:00:56.7]} 35. bxc4 {[%clk 0:01:19.4]} 35... Bf7 {[%clk 0:00:57.4]} 36. Rb1
{[%clk 0:01:19.3]} 36... a4 {[%clk 0:00:58]} 37. Rb7 {[%clk 0:01:19.6]} 37...
Kf8 {[%clk 0:00:58.4]} 38. Kf3 {[%clk 0:01:18.7]} 38... a3 {[%clk 0:00:58.9]}
39. Ke4 {[%clk 0:01:18.7]} 39... Be8 {[%clk 0:00:58.6]} 40. Kxe5 {[%clk
0:01:18.8]} 40... Bc6 {[%clk 0:00:57.8]} 41. Rc7 {[%clk 0:01:18.1]} 41... Bf3
{[%clk 0:00:56]} 42. Kf6 {[%clk 0:01:18.2]} 1-0

[Event "*** SCC Grand Prix: Titled Tuesday Blitz"]
[Site "Chess.com"]
[Date "2020.06.23"]
[Round "4"]
[White "Mikhal867"]
[Black "yamalchess"]
[Result "0-1"]
[WhiteElo "2316"]
[BlackElo "2471"]
[TimeControl "180+1"]
[EndTime "10:37:55 PDT"]
[Termination "yamalchess won by resignation"]

1. c4 {[%clk 0:02:37.5]} 1... f5 {[%clk 0:02:54.7]} 2. Nc3 {[%clk 0:02:35.9]}
2... Nf6 {[%clk 0:02:54.1]} 3. g3 {[%clk 0:02:33.2]} 3... g6 {[%clk 0:02:54]} 4.
Bg2 {[%clk 0:02:33.1]} 4... Bg7 {[%clk 0:02:54.5]} 5. b4 {[%clk 0:02:30.4]} 5...
a5 {[%clk 0:02:51.8]} 6. b5 {[%clk 0:02:26.5]} 6... e5 {[%clk 0:02:48.5]} 7. Bb2
{[%clk 0:02:24]} 7... c5 {[%clk 0:02:46]} 8. Nd5 {[%clk 0:02:21.6]} 8... d6
{[%clk 0:02:45]} 9. e3 {[%clk 0:02:17]} 9... O-O {[%clk 0:02:40.6]} 10. Ne2
{[%clk 0:02:14.8]} 10... Nbd7 {[%clk 0:02:34.6]} 11. O-O {[%clk 0:02:02.5]}
11... Nb6 {[%clk 0:02:29.7]} 12. Nxf6+ {[%clk 0:01:58.2]} 12... Bxf6 {[%clk
0:02:24.7]} 13. d4 {[%clk 0:01:57.2]} 13... e4 {[%clk 0:02:15.7]} 14. Qb3 {[%clk
0:01:47.7]} 14... a4 {[%clk 0:02:14.8]} 15. Qc2 {[%clk 0:01:46.9]} 15... a3
{[%clk 0:02:11.1]} 16. Bc1 {[%clk 0:01:46.3]} 16... Ra4 {[%clk 0:02:08.4]} 17.
Qb3 {[%clk 0:01:26.7]} 17... Be6 {[%clk 0:01:52.6]} 18. d5 {[%clk 0:01:26.5]}
18... Bf7 {[%clk 0:01:41.9]} 19. Bxa3 {[%clk 0:01:24.3]} 19... Rxc4 {[%clk
0:01:39.8]} 20. Nf4 {[%clk 0:01:18.6]} 20... Rc3 {[%clk 0:01:35]} 21. Qb2 {[%clk
0:01:13.4]} 21... Rxe3 {[%clk 0:01:34.5]} 22. Qc1 {[%clk 0:01:11.9]} 22... Rxa3
{[%clk 0:01:29.2]} 23. Qxa3 {[%clk 0:01:11.2]} 23... Bxa1 {[%clk 0:01:28.9]} 24.
Rxa1 {[%clk 0:01:10.5]} 24... Nxd5 {[%clk 0:01:28.8]} 25. Rd1 {[%clk 0:01:03.5]}
25... Nxf4 {[%clk 0:01:27.2]} 26. gxf4 {[%clk 0:01:02.7]} 26... b6 {[%clk
0:01:24]} 27. Qa7 {[%clk 0:01:00]} 27... d5 {[%clk 0:01:18.3]} 28. a4 {[%clk
0:00:58.4]} 28... Qb8 {[%clk 0:01:14.1]} 29. Qa6 {[%clk 0:00:54.1]} 29... d4
{[%clk 0:01:10.6]} 30. Rc1 {[%clk 0:00:52]} 30... d3 {[%clk 0:01:09.4]} 31. Rd1
{[%clk 0:00:48.1]} 31... Bb3 {[%clk 0:01:08.1]} 32. Rb1 {[%clk 0:00:45.9]} 32...
d2 {[%clk 0:01:05.4]} 0-1

[Event "*** SCC Grand Prix: Titled Tuesday Blitz"]
[Site "Chess.com"]
[Date "2020.06.23"]
[Round "4"]
[White "Squirlolz"]
[Black "LionTheLeon_06"]
[Result "1-0"]
[WhiteElo "2516"]
[BlackElo "2689"]
[TimeControl "180+1"]
[EndTime "10:37:56 PDT"]
[Termination "Squirlolz won by resignation"]

1. b3 {[%clk 0:03:00.9]} 1... Nf6 {[%clk 0:02:57.9]} 2. Bb2 {[%clk 0:03:01.8]}
2... e6 {[%clk 0:02:58.3]} 3. e3 {[%clk 0:03:00.6]} 3... b6 {[%clk 0:02:58.7]}
4. f4 {[%clk 0:03:00.4]} 4... Bb7 {[%clk 0:02:58.7]} 5. Nf3 {[%clk 0:03:01.1]}
5... c5 {[%clk 0:02:58]} 6. Be2 {[%clk 0:02:53.9]} 6... d6 {[%clk 0:02:57.2]} 7.
O-O {[%clk 0:02:54.3]} 7... Nbd7 {[%clk 0:02:54.5]} 8. d3 {[%clk 0:02:54]} 8...
g6 {[%clk 0:02:53.7]} 9. Qe1 {[%clk 0:02:52.9]} 9... Bg7 {[%clk 0:02:53.6]} 10.
Nbd2 {[%clk 0:02:53.6]} 10... O-O {[%clk 0:02:51.9]} 11. e4 {[%clk 0:02:53.2]}
11... Qe7 {[%clk 0:02:43]} 12. h3 {[%clk 0:02:50.6]} 12... b5 {[%clk 0:02:42.5]}
13. g4 {[%clk 0:02:50.6]} 13... a6 {[%clk 0:02:31.2]} 14. f5 {[%clk 0:02:39.9]}
14... exf5 {[%clk 0:02:28.3]} 15. gxf5 {[%clk 0:02:40.1]} 15... gxf5 {[%clk
0:02:27.4]} 16. Nh4 {[%clk 0:02:32.3]} 16... Kh8 {[%clk 0:01:24.3]} 17. Nxf5
{[%clk 0:02:31.8]} 17... Qe6 {[%clk 0:01:23.1]} 18. Nxg7 {[%clk 0:02:05.7]}
18... Rg8 {[%clk 0:01:21.6]} 19. Kh2 {[%clk 0:01:56.4]} 19... Rxg7 {[%clk
0:01:17.4]} 20. Qh4 {[%clk 0:01:37.5]} 20... Rag8 {[%clk 0:00:49.6]} 21. Rxf6
{[%clk 0:01:14.9]} 21... Nxf6 {[%clk 0:00:31.9]} 22. Bxf6 {[%clk 0:01:02.8]}
22... d5 {[%clk 0:00:29.9]} 23. Rg1 {[%clk 0:00:55.2]} 23... dxe4 {[%clk
0:00:29.8]} 24. Bxg7+ {[%clk 0:00:52.4]} 24... Rxg7 {[%clk 0:00:29.7]} 25. Qd8+
{[%clk 0:00:52.3]} 1-0